Cogmind - Beta 9.3 @@@ ROGUE MODE // 2020.01.07 @ 22:45:36 // Winter2019/RPGLIKE Player: badjay Result: Destroyed by G-47 Trooper with Particle Gun Performance ------------- Evolutions (3) 1500 Regions Visited (7) 1400 Robots Destroyed (76) 380 Value Destroyed (2500) 2500 Prototype IDs (24) 480 Alien Tech Used (0) 0 Bonus (314) 314 TOTAL SCORE: 6574 Bonus ------- High Alert Combat Kills 258 Follower Combat Kills 56 Cogmind --------- Core Integrity 0/600 Matter 300/300 Energy 82/160 System Corruption 0% Temperature Cool (90) Movement Flying (32) Location -7/Factory Parts ------- > --- POWER (1) -------- Light Nuclear Core > --- PROPULSION (2) --- Improved VTOL Module Improved VTOL Module > --- UTILITY (6) ------ Advanced Targeting Computer Target Analyzer Particle Charger Weapon Cycler Shield Generator > --- WEAPON (2) ------- Precision Shock Rifle Improved Lightning Gun > --- INVENTORY (3) ---- System Backup Module Greatsword Peak State ------------ > --- POWER ------------ Light Nuclear Core > --- PROPULSION ------- Improved VTOL Module Improved VTOL Module > --- UTILITY ---------- Advanced Targeting Computer Target Analyzer Particle Charger Weapon Cycler Maneuvering Thrusters Shield Generator > --- WEAPON ----------- Precision Shock Rifle Improved Lightning Gun > --- INVENTORY -------- System Backup Module [Rating: 40] Favorites ----------- Power Light Nuclear Core Engine Light Ion Engine Power Core Light Nuclear Core Propulsion Flight Unit Flight Unit Flight Unit Utility Target Analyzer Device Particle Charger Processor Target Analyzer Weapon Shock Rifle Energy Gun Shock Rifle Ballistic Gun Light Assault Rifle Ballistic Cannon Light Cannon Launcher Rocket Launcher Build | -11 -10 -10 -10 -9 -8 -8 -7 ------- Run | Scr Mat Min Exi Min Mat Sto Fac Slots Evolved 7 | . 1 . . 1 2 2 1 Power . | . . . . . . . . Propulsion 1 | . 1 . . . . . . Utility 5 | . . . . . 2 2 1 Weapon 1 | . . . . 1 . . . Parts Attached 40 | . 6 . . 9 8 12 5 Power 4 | . 1 . . 1 1 . 1 Engine 2 | . 1 . . 1 . . . Core 2 | . . . . . 1 . 1 Reactor . | . . . . . . . . Propulsion 8 | . 2 . . 3 . 3 . Treads . | . . . . . . . . Leg . | . . . . . . . . Wheel . | . . . . . . . . Hover . | . . . . . . . . Flight 8 | . 2 . . 3 . 3 . Utility 9 | . 1 . . . 4 3 1 Device 5 | . . . . . 1 3 1 Storage . | . . . . . . . . Processor 4 | . 1 . . . 3 . . Hackware . | . . . . . . . . Protection . | . . . . . . . . Artifact . | . . . . . . . . Weapon 19 | . 2 . . 5 3 6 3 Energy Gun 13 | . . . . 1 3 6 3 Energy Cannon . | . . . . . . . . Ballistic Gun 3 | . 1 . . 2 . . . Ballistic Cannon 2 | . 1 . . 1 . . . Launcher 1 | . . . . 1 . . . Special Weapon . | . . . . . . . . Impact Weapon . | . . . . . . . . Slashing Weapon . | . . . . . . . . Piercing Weapon . | . . . . . . . . Special Melee Weapon . | . . . . . . . . Unidentified Prototypes 5 | . . . . . . 3 2 Parts Lost 2 | . . . . . . 1 1 Power 1 | . . . . . . 1 . Propulsion . | . . . . . . . . Utility 1 | . . . . . . . 1 Weapon . | . . . . . . . . Highest Loss Streak 1 | . . . . . . 1 1 Average Slot Usage (%) 93 | . 51 100 100 89 99 98 94 Engine 5 | . 7 20 20 16 4 . . Core 5 | . . . . . 9 9 5 Flight 25 | . 16 40 40 33 29 21 19 Device 14 | . . . . . 3 25 30 Processor 19 | . 17 20 20 16 21 21 19 Energy Gun 14 | . . . . . 18 21 19 Ballistic Gun 3 | . 6 . . 7 9 . . Ballistic Cannon 3 | . 4 20 20 12 . . . Naked Turns 34 | . 34 . . . . . . Heaviest Build 21 | . 6 6 6 10 14 19 21 Greatest Support 22 | 3 8 8 8 8 18 22 22 Greatest Overweight (x) 1 | . . . . 1 . 1 . Average Overweight (x) . | . . . . . . . . Largest Inventory Capacity 3 | . . . . . . . 3 Average Capacity . | . . . . . . . 1 Most Carried 3 | . . . . . . . 3 Average Carried . | . . . . . . . . Final Capacity 3 | . . . . . . . 3 Final Carried 3 | . . . . . . . 3 Class Distribution -------------------- 73% | Hacker-Mutant 26% | Hacker-Sprinter Dominant Class ---------------- Hacker-Mutant | -10/Materials Hacker-Mutant | -10/Mines Hacker-Mutant | -10/Exiles Hacker-Mutant | -9/Mines Hacker-Mutant | -8/Materials Hacker-Mutant | -8/Storage Hacker-Sprinter | -7/Factory Resources | -11 -10 -10 -10 -9 -8 -8 -7 ----------- Run | Scr Mat Min Exi Min Mat Sto Fac Matter Collected 743 | 200 64 . . 126 193 115 45 Remotely . | . . . . . . . . Salvage Created 3217 | . 79 . . 86 932 1315 805 Parts 187 | . 7 . . 15 59 66 40 Haulers Intercepted 8 | . 1 . . . . 5 2 Recyclers Shooed 2 | . . . . . 1 . 1 Parts Field Recycled . | . . . . . . . . Retrieved Matter . | . . . . . . . . Parts Self-Destructed . | . . . . . . . . Prevented . | . . . . . . . . Kills | -11 -10 -10 -10 -9 -8 -8 -7 ------- Run | Scr Mat Min Exi Min Mat Sto Fac Combat Hostiles Destroyed 60 | . 2 . . 8 21 20 9 Melee 1 | . 1 . . . . . . Guns 38 | . 1 . . . 17 14 6 Cannons 8 | . . . . 8 . . . AOE 4 | . . . . . 2 1 1 Classes Destroyed 10 | . 2 . . 1 4 1 2 Worker 1 | . . . . . . . 1 Tunneler 1 | . . . . . 1 . . Hauler 8 | . 1 . . . . 5 2 Watcher 6 | . . . . . 1 2 3 Swarmer 14 | . 2 . . 5 4 3 . Grunt 26 | . . . . 3 11 6 6 Brawler 2 | . . . . . . . 2 Duelist 1 | . . . . . . 1 . Sentry 15 | . . . . . 5 9 1 Hunter 2 | . . . . . 1 1 . Best Kill Streak 8 | . 2 . . 5 8 6 4 Combat Bots Only 6 | . 2 . . 5 6 6 4 Max Kills in Single Turn 2 | . 1 . . 1 1 2 1 Gunslinging 1 | . . . . . . 1 . Exploded 1 | . . . . . 1 1 1 Melee 1 | . 1 . . . . . . Uniques/NPCs Destroyed . | . . . . . . . . Combat | -11 -10 -10 -10 -9 -8 -8 -7 -------- Run | Scr Mat Min Exi Min Mat Sto Fac Damage Taken 2609 | . 139 . . 232 1407 501 330 Core 2147 | . 127 . . 189 1169 398 264 Absorbed by Shields 236 | . . . . . . 110 126 Redirected to Core 1529 | . 23 . . 146 817 336 207 Core Remaining (%) 81 | 100 . . . 99 . 44 . Volleys Fired 180 | . 8 . . 23 73 49 27 Largest 2 | . 1 . . 2 2 2 2 Hottest 115 | . 35 . . 55 100 110 115 Shots Fired 334 | . 8 . . 28 146 98 54 Gun 309 | . 6 . . 5 146 98 54 Cannon 25 | . 2 . . 23 . . . Launcher . | . . . . . . . . Special . | . . . . . . . . Kinetic 88 | . 8 . . 28 52 . . Thermal . | . . . . . . . . Explosive . | . . . . . . . . Electromagnetic 246 | . . . . . 94 98 54 Robot Hit Streak 28 | . 3 . . 9 12 28 18 Robot Miss Streak 2 | . 1 . . 2 2 2 1 Penetration Max . | . . . . . . . . Secondary Targets 4 | . . . . . 2 2 . Max Gunslinging Chain 1 | . . . . . 1 1 . Shots Hit Robots 253 | . 6 . . 20 111 73 43 Core Hits 122 | . 10 . . 10 50 32 20 Critical Hits 10 | . . . . 1 2 5 2 Critical Kills 4 | . . . . . 1 3 . Critical Parts Destroyed 4 | . . . . 1 . 1 2 Melee Attacks . | . . . . . . . . Impact . | . . . . . . . . Slashing . | . . . . . . . . Piercing . | . . . . . . . . Sneak Attacks . | . . . . . . . . Combat Hostiles . | . . . . . . . . Follow-up Attacks . | . . . . . . . . Damage Inflicted 5113 | . 100 . . 336 1517 1914 1246 Guns 4338 | . 31 . . 14 1296 1784 1213 Cannons 358 | . 36 . . 322 . . . Explosions 397 | . 13 . . . 221 130 33 Melee . | . . . . . . . . Ramming 20 | . 20 . . . . . . Kinetic 629 | . 67 . . 336 226 . . Thermal 384 | . . . . . 221 130 33 Explosive . | . . . . . . . . Electromagnetic 4080 | . 13 . . . 1070 1784 1213 Impact . | . . . . . . . . Slashing . | . . . . . . . . Piercing . | . . . . . . . . Highest Corruption 1 | . 1 1 1 1 . 1 . Average Corruption 1 | . 1 1 1 1 . 1 . Corruption Purged . | . . . . . . . . Effects 6 | . . 1 1 1 . 3 . Data Loss (minor) 3 | . . 1 1 . . 1 . Targeting Errors 3 | . . . . 1 . 2 . Overload Shots . | . . . . . . . . Overflow Damage 38 | . . . . 3 18 17 . Projectiles 3 | . . . . 3 . . . Explosions 35 | . . . . . 18 17 . Melee . | . . . . . . . . Knockbacks 5 | . . . . 5 . . . Impact . | . . . . . . . . Kinetic 5 | . . . . 5 . . . Secondary . | . . . . . . . . Self-Inflicted Damage 179 | . 42 . . . 83 54 . Shots 4 | . 1 . . . 2 1 . Rammed 8 | . 8 . . . . . . Targets Rammed 8 | . 8 . . . . . . Kicked . | . . . . . . . . Crushed . | . . . . . . . . Highest Temperature 317 | . . . . 33 317 10 78 Average Temperature 77 | . . . . 16 108 4 20 Received Heat Transfer 842 | . . . . 69 450 156 167 Siege Activations . | . . . . . . . . Robots Corrupted 9 | . . . . . 2 5 2 Combat Hostiles 9 | . . . . . 2 5 2 Parts Fried 27 | . . . . . 11 15 1 Impact Corruptions . | . . . . . . . . Robots Melted . | . . . . . . . . Combat Hostiles . | . . . . . . . . Parts Melted . | . . . . . . . . Heat Transferred 350 | . . . . . 200 100 50 Parts Sabotaged . | . . . . . . . . Parts Stolen . | . . . . . . . . Parts Stripped . | . . . . . . . . Power Chain Reactions 5 | . . . . . 2 2 1 Missiles Intercepted . | . . . . . . . . Alert | -11 -10 -10 -10 -9 -8 -8 -7 ------- Run | Scr Mat Min Exi Min Mat Sto Fac Peak Influence 767 | . 137 53 . 272 581 767 369 Average Influence 234 | . 75 44 . 105 347 308 218 Maximum Alert Level 3 | . . . . 1 2 3 1 Low Security (%) 49 | 100 100 100 . 78 23 32 49 Level 1 32 | . . . . 21 32 41 50 Level 2 16 | . . . . . 43 24 . Level 3 . | . . . . . . 1 . Level 4 . | . . . . . . . . Level 5 . | . . . . . . . . High Security . | . . . . . . . . Max Security . | . . . . . . . . Squads Dispatched 7 | . 1 . . . 4 . 2 Investigation 4 | . 1 . . . 2 . 1 Extermination . | . . . . . . . . Reinforcement 3 | . . . . . 2 . 1 Assault . | . . . . . . . . Garrison . | . . . . . . . . Intercept . | . . . . . . . . Construction Impeded . | . . . . . . . . Haulers Reinforced . | . . . . . . . . Stealth | -11 -10 -10 -10 -9 -8 -8 -7 --------- Run | Scr Mat Min Exi Min Mat Sto Fac Distress Signals 1 | . . . . . 1 . . Communications Jammed . | . . . . . . . . Distress Signals . | . . . . . . . . Times Spotted 114 | . 4 . . 15 35 33 27 Peak Tracking Total 10 | . 3 . . 7 7 10 8 Tactical Retreats 16 | . . . . 1 4 7 4 Traps | -11 -10 -10 -10 -9 -8 -8 -7 ------- Run | Scr Mat Min Exi Min Mat Sto Fac Traps Triggered 4 | . . . . . . 3 1 Indirectly . | . . . . . . . . Trap Hack Attempts . | . . . . . . . . Triggered . | . . . . . . . . Disarmed . | . . . . . . . . Reprogrammed . | . . . . . . . . Reused . | . . . . . . . . Traps Extracted . | . . . . . . . . Installed . | . . . . . . . . Triggered . | . . . . . . . . Machines | -11 -10 -10 -10 -9 -8 -8 -7 ---------- Run | Scr Mat Min Exi Min Mat Sto Fac Machines Disabled 5 | . 1 . . . . 3 1 Max in Single Turn 1 | . 1 . . . . 1 1 Garrison Access 2 | . . . . . . 1 1 Machines Sabotaged . | . . . . . . . . Garrisons Compromised . | . . . . . . . . Overloaded Fab Kills . | . . . . . . . . Fab Network Shutdowns . | . . . . . . . . Hacking | -11 -10 -10 -10 -9 -8 -8 -7 --------- Run | Scr Mat Min Exi Min Mat Sto Fac Machines Accessed 29 | . 5 . . . 4 14 6 Terminals 27 | . 5 . . . 4 13 5 Fabricators . | . . . . . . . . Repair Stations . | . . . . . . . . Recycling Units . | . . . . . . . . Scanalyzers . | . . . . . . . . Garrison Access 2 | . . . . . . 1 1 Total Hacks 165 | . 32 . . . 25 79 29 Successful 104 | . 22 . . . 19 46 17 Failed 59 | . 9 . . . 5 33 12 Catastrophic 7 | . 3 . . . 1 3 . Database Lockouts 2 | . 1 . . . 1 . . Manual 131 | . 24 . . . 21 63 23 Terminals 163 | . 32 . . . 25 78 28 Fabricators . | . . . . . . . . Repair Stations . | . . . . . . . . Recycling Units . | . . . . . . . . Scanalyzers . | . . . . . . . . Garrison Access 2 | . . . . . . 1 1 Terminal Hacks 60 | . 15 . . . 10 27 8 Part Schematic 1 | . . . . . . 1 . Robot Analysis 2 | . 1 . . . . . 1 Prototype ID Bank 15 | . 4 . . . 6 5 . Open Door 4 | . . . . . . 4 . Level Access Points 4 | . 1 . . . 1 1 1 Branch Access Points 4 | . 1 . . . 1 1 1 Terminal Index 4 | . 1 . . . 1 1 1 Scanalyzer Index 1 | . . . . . . . 1 Garrison Index 1 | . . . . . . 1 . Alert Level 5 | . 2 . . . . 3 . Unreport Threat 5 | . . . . . . 5 . Locate Traps 1 | . 1 . . . . . . Investigation Status 1 | . . . . . . 1 . Recall Investigation 1 | . . . . . . . 1 Hauler Manifests 2 | . 1 . . . . . 1 Registered Components 3 | . 1 . . . 1 . 1 Registered Prototypes 1 | . 1 . . . . . . Zone Layout 5 | . 1 . . . . 4 . Fabricator Hacks . | . . . . . . . . Repair Station Hacks . | . . . . . . . . Recycling Unit Hacks . | . . . . . . . . Scanalyzer . | . . . . . . . . Garrison Access Hacks 2 | . . . . . . 1 1 Seal Access 2 | . . . . . . 1 1 Unauthorized Hacks 96 | . 14 . . . 19 45 18 Terminals 42 | . 7 . . . 9 18 8 Track 20 | . 4 . . . 4 8 4 Assimilate 2 | . . . . . 1 1 . Botnet 13 | . 3 . . . 3 4 3 Disrupt 6 | . . . . . 1 4 1 Operators 1 | . . . . . . 1 . Fabricators . | . . . . . . . . Repair Stations . | . . . . . . . . Recycling Units . | . . . . . . . . Scanalyzers . | . . . . . . . . Garrison Access . | . . . . . . . . Data Cores Recovered . | . . . . . . . . Used . | . . . . . . . . Hacking Detections 22 | . 5 . . . 2 10 5 Full Trace Events 2 | . . . . . 1 . 1 Feedback Events . | . . . . . . . . Feedback Blocked . | . . . . . . . . Robot Schematics Acquired . | . . . . . . . . Robots Built . | . . . . . . . . Matter . | . . . . . . . . Time . | . . . . . . . . Total Robot Build Rating . | . . . . . . . . Part Schematics Acquired 1 | . . . . . . 1 . Parts Built . | . . . . . . . . Matter . | . . . . . . . . Time . | . . . . . . . . Total Part Build Rating . | . . . . . . . . Parts Repaired . | . . . . . . . . Time . | . . . . . . . . Parts Recycled . | . . . . . . . . Recycled Matter . | . . . . . . . . Retrieved Matter . | . . . . . . . . Retrieved Components . | . . . . . . . . Parts Scanalyzed . | . . . . . . . . Part Schematics Acquired . | . . . . . . . . Parts Damaged . | . . . . . . . . Bothacking | -11 -10 -10 -10 -9 -8 -8 -7 ------------ Run | Scr Mat Min Exi Min Mat Sto Fac Used RIF Installer . | . . . . . . . . Robots Hacked . | . . . . . . . . Non-combat . | . . . . . . . . Combat . | . . . . . . . . Robot Hacks Applied . | . . . . . . . . Relay Couplers Released . | . . . . . . . . Robots Rewired . | . . . . . . . . Allies Hacked . | . . . . . . . . Hacks Repelled . | . . . . . . . . Allies | -11 -10 -10 -10 -9 -8 -8 -7 -------- Run | Scr Mat Min Exi Min Mat Sto Fac Total Allies 6 | . . 2 . 3 . 1 . Largest Group 3 | . . 2 1 3 3 1 1 Highest-Rated Group 42 | . . 42 26 40 40 26 26 Highest-Rated Ally 31 | . . 31 26 16 16 26 26 Total Orders . | . . . . . . . . Ally Attacks 24 | . . . . 13 11 . . Total Damage 270 | . . . . 136 134 . . Kills 4 | . . . . 3 1 . . Allies Corrupted . | . . . . . . . . Allies Melted . | . . . . . . . . Intel | -11 -10 -10 -10 -9 -8 -8 -7 ------- Run | Scr Mat Min Exi Min Mat Sto Fac Robot Analysis Total 2 | . 1 . . . . . 1 Derelict Logs Recovered 2 | . . 1 . 1 . . . Drone Launches . | . . . . . . . . Drone Recoveries . | . . . . . . . . Exploration | -11 -10 -10 -10 -9 -8 -8 -7 ------------- Run | Scr Mat Min Exi Min Mat Sto Fac Turns Passed 2154 | 19 144 121 56 306 479 585 444 Spaces Moved 3183 | 37 249 167 152 474 390 810 904 Core 159 | 37 122 . . . . . . Treads . | . . . . . . . . Legs . | . . . . . . . . Wheels . | . . . . . . . . Hover . | . . . . . . . . Flight 3024 | . 127 167 152 474 390 810 904 Fastest Speed 32 | 50 37 37 37 37 37 32 32 Average Speed 36 | 50 43 37 37 37 37 35 32 Slowest Speed 117 | 50 50 37 37 117 37 105 32 Overloaded Moves . | . . . . . . . . Propulsion Burnouts . | . . . . . . . . Robots Hopped 50 | . 3 . . 3 6 18 20 Cave-ins Triggered . | . . . . . . . . Exploration Rate (%) 48 | 3 44 48 51 82 42 91 30 Regions Visited 7 Branch Regions 4 Pre-discovered Areas 1 | . . 1 . . . . . Known Exits Taken 3 | . 1 . . . 1 1 . Unknown Exits Taken 4 | 1 . 1 1 1 . . . Scrap Searched 2 | . . . . 2 . . . Spaces Dug . | . . . . . . . . Terrain Destroyed 19 | . . . . . 6 13 . Melee . | . . . . . . . . Projectile . | . . . . . . . . AOE 19 | . . . . . 6 13 . Actions | -11 -10 -10 -10 -9 -8 -8 -7 --------- Run | Scr Mat Min Exi Min Mat Sto Fac Total 3811 | 36 271 225 151 571 580 989 988 Wait 314 | . . 59 . 48 71 87 49 Move 3078 | 36 242 166 151 467 377 774 865 Hop 48 | . 3 . . 3 6 17 19 Pick Up 2 | . . . . . . . 2 Fast Attach 32 | . 6 . . 5 6 10 5 Attach . | . . . . . . . . Detach . | . . . . . . . . Swap 8 | . . . . 4 2 2 . Drop 26 | . 1 . . 8 4 10 3 Fire 180 | . 8 . . 23 73 49 27 Melee . | . . . . . . . . Ram 8 | . 8 . . . . . . Kick . | . . . . . . . . Crush . | . . . . . . . . Escape Stasis 36 | . . . . . . 18 18 Rewire . | . . . . . . . . Trap . | . . . . . . . . Miscellaneous 79 | . 3 . . 13 41 22 . Route ------- -11/Scrapyard -10/Materials (discovered 5 exits: Mat x3 / *Min x2) -10/Mines (discovered 2 exits: *Mat / [*Exi]) -10/Exiles (discovered 2 exits: [*Min x2]) -9/Mines -8/Materials (discovered 4 exits: *Fac x3 / *Sto) -8/Storage (discovered 2 exits: *Fac / Rec) -7/Factory (discovered 6 exits: *Fac x4 / *Low x2) History --------- Turn | Location | Event 11 | -11/Scrapyard | Discovered new exit (range 12) 20 | -11/Scrapyard | Entered Materials 38 | -10/Materials | Identified exit to Mines 57 | -10/Materials | Identified exit to Materials 114 | -10/Materials | Upgraded with Propulsion slot (x1) 135 | -10/Materials | Central database locked down 164 | -10/Materials | Entered Mines 176 | -10/Mines | Discovered exit to Materials (range 12) 213 | -10/Mines | Learned location of Storage (-8) 219 | -10/Mines | Assembled infested the area 224 | -10/Mines | Deemed a non-threat by the Exiles lab entrance 224 | -10/Mines | Discovered new exit (range 5) 285 | -10/Mines | Entered Exiles 285 | -10/Exiles | Accompanied by 1 ally 295 | -10/Exiles | Met 8R-AWN 297 | -10/Exiles | Discovered new exit (range 15) 308 | -10/Exiles | Met EX-HEX 315 | -10/Exiles | Led the pair of lost Derelicts to a safe place 324 | -10/Exiles | Met EX-DEC 330 | -10/Exiles | Build established: Hacker-Mutant 336 | -10/Exiles | Discovered new exit (range 14) 341 | -10/Exiles | Entered Mines 343 | -9/Mines | Reached level 2 351 | -9/Mines | Upgraded with Weapon slot (x1) 383 | -9/Mines | Received a Rocket Launcher from a helpful Derelict 511 | -9/Mines | Learned location of 1 exit from Lower Caves 537 | -9/Mines | Assisted by bots powering up and referring to "LRC-V3" 582 | -9/Mines | Reached level 3 610 | -9/Mines | Discovered new exit (range 13) 647 | -9/Mines | Entered Materials 647 | -8/Materials | Accompanied by 3 allies 649 | -8/Materials | Reached level 4 853 | -8/Materials | Identified exit to Storage 856 | -8/Materials | Identified exit to Factory 856 | -8/Materials | Upgraded with Utility slot (x1) 885 | -8/Materials | Core integrity fell below 50% 897 | -8/Materials | Reached level 5 909 | -8/Materials | Core integrity fell below 20% 972 | -8/Materials | Central database locked down 983 | -8/Materials | Upgraded with Utility slot (x1) 1102 | -8/Materials | Reached level 6 1126 | -8/Materials | Entered Storage 1130 | -8/Storage | Identified exit to Recycling 1262 | -8/Storage | Reached level 7 1268 | -8/Storage | Upgraded with Utility slot (x1) 1272 | -8/Storage | Upgraded with Utility slot (x1) 1432 | -8/Storage | Reached level 8 1711 | -8/Storage | Entered Factory 1711 | -7/Factory | Accompanied by 1 ally 1712 | -7/Factory | Core integrity fell below 50% 1713 | -7/Factory | Reached level 9 1744 | -7/Factory | Discovered new exit (range 10) 1839 | -7/Factory | Discovered new exit (range 6) 1860 | -7/Factory | Identified exit to Lower Caves 1860 | -7/Factory | Identified exit to Factory 1866 | -7/Factory | Reached level 10 1947 | -7/Factory | Build established: Hacker-Sprinter 2023 | -7/Factory | Upgraded with Utility slot (x1) 2089 | -7/Factory | Core integrity fell below 20% 2155 | -7/Factory | Destroyed by G-47 Trooper with Particle Gun Last Messages --------------- 02130_ Field strength at 40. 02131_ Field strength at 35. 02132_ Field strength at 30. 02133_ Field strength at 25. 02134_ Field strength at 20. 02135_ Field strength at 15. 02136_ Field strength at 10. 02137_ Field strength at 5. 02138_ Stasis field depleted. 02139_ Chain reaction triggered in Lgt. Nuclear Core. 02139_ G-47 Trooper destroyed. 02139_ Megafabricator disabled. 02143_ R-06 Scavenger collects Particle Gun. 02144_ Transport Network Coupler fried. 02144_ A-02 Transporter destroyed. 02148_ R-06 Scavenger collects Imp. Heat Sink. 02152_ R-06 Scavenger collects Aluminum Leg. 02153_ C-30 ARC bursts open, deploying its payload. 02153_ H-55 Commando unfolds itself. 02154_ B-48 Gladiator system terminally corrupted. Map ----- +----------------------------------------------------+ | ?????????????????????????????????????????????????? | | ????????????????????????? ?????????????????? | | ????????????????????????# #????????????????? | | ????????????????????????# #????????????????? | | ????????????????????????# #????????????????? | | ???????????????????????## #????????????????? | | ??????????????????? ? ! #????????????????? | | ???????????????????? ? #????????????????? | | ??????????????? ?""" """ #????????????????? | | ?????????????? """ """ **#????????????????? | | ?????????????? """ """ **########?????????? | | ?????????????? # ?????????? | | ????????????? # ??????????? | | ????????????? ! # """"??????#???? | | ???????????? # """" ??! #???? | | ???????????? ^ # """" ! #???? | | ???????????? # """" #???? | | ???????????? % + """" ! #???? | | ??????????????"""" """"""""" # """" #???? | | ?????????????????? """"""""" h # """" #???? | | ???????????????????""""""""" # #???? | | ???????????????????""""""""" # ! #???? | | ????????????????""u""""""""" # * #???? | | ????????????"""""" """""""" r %=##+###########???? | | ?????????? [[%[* * ## #?????????##### | | ?????????? [[[ @ % ## #?????????# | | ?????????? != ## #?????????# | | ?????????? u g %= ## #?????????# | | ??????????? gg * ## #????????## | | ??????????? #################### #????????# | | ?????????????????????????????????# #????????## | | ?????????????????????????????????# #?????????# | | ?????????????????????????????????# #?????????# | | ???????????????????????????####### ############ | | ???????????????????? | | ???????????????????????????################+## | | ??????????????????????????????????????# ! # | | ??????????????????????????????????????# # "" | | ??????????????????????????????????????# """ # "" | | ??????????????????????????????????????# """ # "" | | ??????????????????????????????????????# """ # | | ??????????????????????????????????????# # | | ??????????????????????????????????????##+##### | | ???????????????????????????????????????# | | ???????????????????????????????????????# #####+### | | ???????????????????????????????????????# #?? ? | | ???????????????????????????????????????# ## | | ???????????????????????????????????????# ## | | ?????????????????????????????##????????# ## ] | | #????#######????????????? ?########+######### | +----------------------------------------------------+ Best States ------------- Heat Dissipation 49 Energy Generation 29 Energy Capacity 160 Matter Stores 300 Matter Capacity 300 Sight Range 16 Terrain Scan Density 10 Weapon Cycling 15 Evasion (%) 69 Targeting Accuracy 8 Target Analysis 5 Particle Charging 15 Offensive Hacking 10 Defensive Hacking 15 Item Schematics ----------------- Force Rifle | -8/Storage | Hacked Robot Schematics ------------------ None Fabricated ------------ Nothing Alien Tech Used ----------------- None Achievements -------------- None Challenges ------------ None RPGLIKE | -11 -10 -10 -10 -9 -8 -8 -7 --------- Run | Scr Mat Min Exi Min Mat Sto Fac Levels Raised 9 | . . . . 2 3 2 2 XP Earned 17715 | 3000 575 500 200 1869 4368 4258 2945 XP Spent 15370 | . 2600 . . 1400 4320 3850 3200 Upgrades 29 | . 6 . . 3 12 4 4 Propulsion Slot 1 | . 1 . . . . . . Utility Slot 5 | . . . . . 2 2 1 Weapon Slot 1 | . . . . 1 . . . Heat Dissipation 4 | . . . . . 4 . . Energy Generation 3 | . . . . . 1 2 . Mass Support 2 | . . . . . 2 . . Inventory Capacity 3 | . . . . . . . 3 Ranged Accuracy 5 | . . . . 2 3 . . Hack Attack % 2 | . 2 . . . . . . Hack Defense % 3 | . 3 . . . . . . Protomatter Created 844 | . 17 . . 76 385 275 91 Integrity Restored 1643 | . 51 . . 264 854 474 . Core 1547 | . 51 . . 264 758 474 . Parts 96 | . . . . . 96 . . Protomatter Decayed 335 | . . . . . 127 117 91 Game ------ Seed CoolantNeutrinoFlamer Manual? 0 Play Time 00:44:02 Cumulative 129.4 hours Start 2020.01.07 @ 21:25:50 End 2020.01.07 @ 22:45:36 Sessions 1 Manual Loads 0 Difficulty Rogue Special Mode Winter2019/RPGLIKE Game No. 139 Rogue 139 Adventurer 0 Explorer 0 Win Type - Total 11 Types 10/0/0/1/0/0/0 Lore% 70 Gallery% 70 Achievement% 62 Wizard Run 0 Options --------- ASCII 0 Keyboard 0 Movement Numpad Keybinds 0 Fullscreen 2 Font 18/SmallcapsGlow Map View 76x50 Tactical HUD 1 Map Filters NONE Filters NONE Steam X RUN: 651be1e6-e6fa-4923-8261-750e3d4e687a